Workbook

Sheet КСП 2023 оформлено
D1: ПРИЛОЖЕНИЕ 4 к краткосрочному плану реализации региональной программы капитального ремонта общего имущества в многоквартирных домах Челябинской области на 2022-2024 годы
A2: Реестр многоквартирных домов по оказанию услуг и выполнению работ (в рамках II этапа Плана)
D3: ПРИЛОЖЕНИЕ 4 к краткосрочному плану реализации региональной программы капитального ремонта общего имущества в многоквартирных домах Челябинской области на 2022 - 2024 годы (в редакции постановления Правительства Челябинской области от 29.08.2023 г. № 450-П)
A4: Реестр многоквартирных домов по видам ремонта в рамках II этапа Плана
A5: № п/п | B5: Адрес многоквартирного дома* | C5: Стоимость капитального ремонта, всего | D5: Виды ремонта, установленные частью 1 статьи 166 Жилищного кодекса Российской Федерации | K5: Виды ремонта, установленные частью 1 статьи 166 Жилищного кодекса Российской Федерации | S5: Виды ремонта, установленные нормативным правовым актом Челябинской области | U5: Стоимость оказания услуг и выполнения работ по разработке проектной документации, всего | V5: Оказание услуг и выполнение работ по разработке проектной документации видов ремонта, установленных частью 1 статьи 166 Жилищного кодекса Российской Федерации | AI5: Оказание услуг и выполнение работ по разработке проектной документации видов ремонта, установленных нормативным правовым актом Челябинской области | AK5: Стоимость осуществления строительного контроля, всего | AO5: Осуществление строительного контроля работ, установленных частью 1 статьи 166 Жилищного кодекса Российской Федерации | AW5: Осуществление строительного контроля работ, установленных нормативным правовым актом Челябинской области
D6: ремонт внутридомовых инженерных систем | E6: ремонт внутридомовых инженерных систем | K6: ремонт крыши | M6: ремонт подвальных помещений | O6: ремонт фасада | Q6: ремонт фундамента | S6: установка коллективных (общедомовых) узлов управления потреблением горячей воды | T6: установка коллективных (общедомовых) узлов управления потреблением тепловой энергии | V6: ремонт внутридомовых инженерных систем | W6: ремонт внутридомовых инженерных систем | AC6: ремонт крыши | AE6: ремонт подвальных помещений | AF6: ремонт фасада | AH6: ремонт фундамента | AI6: установка коллективных (общедомовых) узлов управления потреблением горячей воды | AJ6: установка коллективных (общедомовых) узлов управления потреблением тепловой энергии | AL6: ремонт внутридомовых инженерных систем | AO6: ремонт внутридомовых инженерных систем | AS6: ремонт крыши | AT6: ремонт подвальных помещений | AU6: ремонт фасада | AV6: ремонт фундамента | AW6: установка коллективных (общедомовых) узлов управления потреблением горячей воды | AX6: установка коллективных (общедомовых) узлов управления потреблением тепловой энергии
E7: ЭЭ** | F7: ГВС*** | G7: ХВС**** | H7: ТС***** | I7: ВО****** | J7: ГС******* | W7: ЭЭ | X7: ГВС | Y7: ХВС | Z7: ТС | AA7: ВО | AB7: ГС | AC7: ОСК | AD7: ПСД | AF7: ОСК | AG7: ПСД | AM7: ЭЭ | AN7: ГВС | AO7: ХВС | AP7: ТС | AQ7: ВО | AR7: ГС
C8: рублей | D8: рублей | E8: рублей | F8: рублей | G8: рублей | H8: рублей | I8: рублей | J8: рублей | K8: кв. метров | L8: рублей | M8: кв. метров | N8: рублей | O8: кв. метров | P8: рублей | Q8: куб. метров | R8: рублей | S8: рублей | T8: рублей | U8: рублей | V8: рублей | W8: рублей | X8: рублей | Y8: рублей | Z8: рублей | AA8: рублей | AB8: рублей | AC8: рублей | AD8: рублей | AE8: рублей | AF8: рублей | AG8: рублей | AH8: рублей | AI8: рублей | AJ8: рублей | AK8: рублей | AL8: рублей | AM8: рублей | AN8: рублей | AO8: рублей | AP8: рублей | AQ8: рублей | AR8: рублей | AS8: рублей | AT8: рублей | AU8: рублей | AV8: рублей | AW8: рублей | AX8: рублей
A9: 1 | B9: 2 | C9: 3 | D9: 4 | E9: 5 | F9: 6 | G9: 7 | H9: 8 | I9: 9 | J9: 10 | K9: 11 | L9: 12 | M9: 13 | N9: 14 | O9: 15 | P9: 16 | Q9: 17 | R9: 18 | S9: 19 | T9: 20 | U9: 21 | V9: 22 | W9: 23 | X9: 24 | Y9: 25 | Z9: 26 | AA9: 27 | AB9: 28 | AC9: 29 | AD9: 30 | AE9: 31 | AF9: 32 | AG9: 33 | AH9: 34 | AI9: 35 | AJ9: 36 | AK9: 37 | AL9: 38 | AM9: 39 | AN9: 40 | AO9: 41 | AP9: 42 | AQ9: 43 | AR9: 44 | AS9: 45 | AT9: 46 | AU9: 47 | AV9: 48 | AW9: 49 | AX9: 50
A10: Верхнеуфалейский городской округ
A11: 1. | B11: г. Верхний Уфалей, ул. Некрасова, д. 8 | C11: =SUM(D11,L11,N11,P11,R11:U11,AK11) -> 3252108.89 | D11: =SUM(E11:J11) -> 0 | K11: 358 | L11: 2909466 | U11: =SUM(W11:AJ11) -> 232757.28 | V11: =SUM(W11:AB11) -> 0 | AD11: 232757.28 | AK11: =SUM(AM11:AX11) -> 109885.61 | AL11: =SUM(AM11:AR11) -> 0 | AS11: 109885.61
A12: 2. | B12: г. Верхний Уфалей, ул. Победы, д. 34 | C12: 7724780.14 | D12: 0 | K12: 863 | L12: 7013601 | U12: =SUM(W12:AJ12) -> 561088.08 | V12: =SUM(W12:AB12) -> 0 | AD12: 561088.08 | AK12: 150091.06 | AL12: 0 | AS12: 150091.06
A13: Итого по Верхнеуфалейскому городскому округу | C13: =SUM(C11:C12) -> 10976889.03 | D13: =SUM(D11:D12) -> 0 | E13: 0 | F13: 0 | G13: 0 | H13: 0 | I13: 0 | J13: 0 | K13: 1221 | L13: 9923067 | M13: 0 | N13: 0 | O13: 0 | P13: 0 | Q13: 0 | R13: 0 | S13: 0 | T13: 0 | U13: 793845.36 | V13: 0 | W13: 0 | X13: 0 | Y13: 0 | Z13: 0 | AA13: 0 | AB13: 0 | AC13: 0 | AD13: 793845.36 | AE13: 0 | AF13: 0 | AG13: 0 | AH13: 0 | AI13: 0 | AJ13: 0 | AK13: 259976.67 | AL13: 0 | AM13: 0 | AN13: 0 | AO13: 0 | AP13: 0 | AQ13: 0 | AR13: 0 | AS13: 259976.67 | AT13: 0 | AU13: 0 | AV13: 0 | AW13: 0 | AX13: 0
A14: Златоустовский городской округ
A15: 3. | B15: г. Златоуст, п. ЗЭС Челябэнерго, д. 4 | C15: =SUM(D15,L15,N15,P15,R15:U15,AK15) -> 35084.94 | D15: =SUM(E15:J15) -> 0 | U15: =SUM(W15:AJ15) -> 35084.94 | V15: =SUM(W15:AB15) -> 0 | AC15: 35084.94 | AK15: =SUM(AM15:AX15) -> 0 | AL15: =SUM(AM15:AR15) -> 0
A16: 4. | B16: г. Златоуст, ул. им. М.И. Калинина, д. 8 | C16: 30435.78 | D16: 0 | U16: 30435.78 | V16: 0 | AF16: 30435.78 | AK16: 0 | AL16: 0
A17: 5. | B17: г. Златоуст, ул. им. Карла Маркса, д. 11 | C17: 29773033.92 | D17: 0 | K17: 2703.25 | L17: 29349968.61 | U17: 0 | V17: 0 | AK17: 423065.31 | AL17: 0 | AS17: 423065.31
A18: 6. | B18: г. Златоуст, ул. им. Карла Маркса, д. 8 | C18: 14088950.59 | D18: 0 | K18: 1349 | L18: 13867156.92 | U18: 0 | V18: 0 | AK18: 221793.67 | AL18: 0 | AS18: 221793.67
A19: 7. | B19: г. Златоуст, ул. Техническая, д. 12 | C19: 26921.88 | D19: 0 | U19: 26921.88 | V19: 0 | AF19: 26921.88 | AK19: 0 | AL19: 0
A20: 8. | B20: г. Златоуст, ул. Техническая, д. 13 | C20: 26516.43 | D20: 0 | U20: 26516.43 | V20: 0 | AF20: 26516.43 | AK20: 0 | AL20: 0
A21: 9. | B21: г. Златоуст, ул. Техническая, д. 14 | C21: 26273.16 | D21: 0 | U21: 26273.16 | V21: 0 | AF21: 26273.16 | AK21: 0 | AL21: 0
A22: 10. | B22: г. Златоуст, ул. Техническая, д. 15 | C22: 26219.1 | D22: 0 | U22: 26219.1 | V22: 0 | AF22: 26219.1 | AK22: 0 | AL22: 0
A23: 11. | B23: г. Златоуст, ул. Техническая, д. 16 | C23: 26705.64 | D23: 0 | U23: 26705.64 | V23: 0 | AF23: 26705.64 | AK23: 0 | AL23: 0
A24: 12. | B24: г. Златоуст, ул. Техническая, д. 17 | C24: 26138.01 | D24: 0 | U24: 26138.01 | V24: 0 | AF24: 26138.01 | AK24: 0 | AL24: 0
A25: Итого по Златоустовскому городскому округу | C25: =SUM(C15:C24) -> 44086279.45 | D25: =SUM(D15:D24) -> 0 | E25: 0 | F25: 0 | G25: 0 | H25: 0 | I25: 0 | J25: 0 | K25: 4052.25 | L25: 43217125.53 | M25: 0 | N25: 0 | O25: 0 | P25: 0 | Q25: 0 | R25: 0 | S25: 0 | T25: 0 | U25: 224294.94 | V25: 0 | W25: 0 | X25: 0 | Y25: 0 | Z25: 0 | AA25: 0 | AB25: 0 | AC25: 35084.94 | AD25: 0 | AE25: 0 | AF25: 189210 | AG25: 0 | AH25: 0 | AI25: 0 | AJ25: 0 | AK25: 644858.98 | AL25: 0 | AM25: 0 | AN25: 0 | AO25: 0 | AP25: 0 | AQ25: 0 | AR25: 0 | AS25: 644858.98 | AT25: 0 | AU25: 0 | AV25: 0 | AW25: 0 | AX25: 0
A26: Карабашский городской округ
A27: 13. | B27: г. Карабаш, ул. Гагарина, д. 11 | C27: =SUM(D27,L27,N27,P27,R27:U27,AK27) -> 399289.67 | D27: =SUM(E27:J27) -> 338353.33 | F27: 266214.24 | G27: 72139.09 | U27: =SUM(W27:AJ27) -> 46030 | V27: =SUM(W27:AB27) -> 46030 | X27: 21297.14 | Y27: 5771.13 | AA27: 18961.73 | AK27: =SUM(AM27:AX27) -> 14906.34 | AL27: =SUM(AM27:AR27) -> 14906.34 | AN27: 8524.86 | AO27: 6381.48
A28: 14. | B28: г. Карабаш, ул. Гагарина, д. 9 | C28: 8506983.45 | D28: 2248309.37 | G28: 94411.97 | H28: 1532571.64 | I28: 621325.76 | K28: 625 | L28: 4732468.75 | T28: 619447.2 | U28: 742299.01 | V28: 185765.47 | X28: 17616.28 | Y28: 7552.96 | Z28: 122605.73 | AA28: 37990.5 | AD28: 320670.38 | AG28: 146831.75 | AH28: 39475.63 | AJ28: 49555.78 | AK28: 164459.12 | AL28: 49419.2 | AO28: 3094.17 | AP28: 32961.84 | AQ28: 13363.19 | AS28: 101783.75 | AX28: 13256.17
A29: 15. | B29: г. Карабаш, ул. Декабристов, д. 21 | C29: 259119.67 | D29: 230686.77 | E29: 230686.77 | U29: 18454.94 | V29: 18454.94 | W29: 18454.94 | AK29: 9977.96 | AL29: 9977.96 | AM29: 9977.96
A30: 16. | B30: г. Карабаш, ул. Декабристов, д. 25 | C30: 11060.12 | D30: 0 | U30: 11060.12 | V30: 0 | AE30: 11060.12 | AK30: 0 | AL30: 0
A31: 17. | B31: г. Карабаш, ул. Ленина, д. 30 | C31: 11465675.79 | D31: 2256832.54 | F31: 308284.83 | G31: 197806 | H31: 1532571.64 | I31: 218170.07 | K31: 640 | L31: 4846048 | O31: 950 | P31: 2925548.75 | Q31: 110 | R31: 427395.04 | U31: 784972.43 | V31: 151555.09 | X31: 6856.56 | Y31: 4639.2 | Z31: 122605.73 | AA31: 17453.6 | AD31: 365181.84 | AG31: 234043.9 | AH31: 34191.6 | AK31: 224879.03 | AL31: 48538.91 | AN31: 6630.45 | AO31: 4254.32 | AP31: 32961.84 | AQ31: 4692.3 | AS31: 104226.56 | AU31: 62921.35 | AV31: 9192.21
A32: 18. | B32: г. Карабаш, ул. Ленина, д. 34 | C32: 504147.88 | D32: 452301.53 | E32: 452301.53 | U32: 36184.12 | V32: 36184.12 | W32: 36184.12 | AK32: 15662.23 | AL32: 15662.23 | AM32: 15662.23
A33: 19. | B33: г. Карабаш, ул. Техническая, д. 27 | C33: 521835.73 | D33: 460687.11 | H33: 460687.11 | U33: 51240.37 | V33: 51240.37 | Y33: 4980.79 | Z33: 36854.97 | AA33: 9404.61 | AK33: 9908.25 | AL33: 9908.25 | AP33: 9908.25
A34: 20. | B34: г. Карабаш, ул. Техническая, д. 28 | C34: 534705.49 | D34: 485430.62 | H34: 485430.62 | U34: 38834.45 | V34: 38834.45 | Z34: 38834.45 | AK34: 10440.42 | AL34: 10440.42 | AP34: 10440.42
A35: 21. | B35: г. Карабаш, ул. Техническая, д. 29 | C35: 872400.02 | D35: 792005.49 | G35: 82386.2 | H35: 565372.87 | I35: 144246.42 | U35: 63360.44 | V35: 63360.44 | Y35: 6590.9 | Z35: 45229.83 | AA35: 11539.71 | AK35: 17034.09 | AL35: 17034.09 | AO35: 1771.92 | AP35: 12159.78 | AQ35: 3102.39
A36: 22. | B36: г. Карабаш, ул. Техническая, д. 30 | C36: 3588894.36 | D36: 610788.88 | H36: 486629.64 | I36: 124159.24 | K36: 230 | L36: 2536358 | U36: 369006.35 | V36: 48863.11 | Z36: 38930.37 | AA36: 9932.74 | AD36: 202880.32 | AG36: 97805.71 | AH36: 19457.21 | AK36: 72741.13 | AL36: 13136.57 | AP36: 10466.21 | AQ36: 2670.36 | AS36: 59604.56
A37: 23. | B37: г. Карабаш, ул. Техническая, д. 32 | C37: 3970130.52 | D37: 896810.8 | E37: 243400.48 | G37: 98903 | H37: 441786.12 | I37: 112721.2 | K37: 235 | L37: 2593302 | U37: 401548.08 | V37: 71744.86 | W37: 19472.04 | Y37: 7912.24 | Z37: 35342.89 | AA37: 9017.69 | AD37: 205957.04 | AG37: 106182.02 | AH37: 17664.16 | AK37: 78469.64 | AL37: 23099.28 | AM37: 9046.04 | AO37: 2127.16 | AP37: 9501.73 | AQ37: 2424.35 | AS37: 55370.36
A38: Итого по Карабашскому городскому округу | C38: =SUM(C27:C37) -> 30634242.7 | D38: =SUM(D27:D37) -> 8772206.44 | E38: 926388.78 | F38: 574499.07 | G38: 545646.26 | H38: 5505049.64 | I38: 1220622.69 | J38: 0 | K38: 1730 | L38: 14708176.75 | M38: 0 | N38: 0 | O38: 950 | P38: 2925548.75 | Q38: 110 | R38: 427395.04 | S38: 0 | T38: 619447.2 | U38: 2562990.31 | V38: 712032.85 | W38: 74111.1 | X38: 45769.98 | Y38: 37447.22 | Z38: 440403.97 | AA38: 114300.58 | AB38: 0 | AC38: 0 | AD38: 1094689.58 | AE38: 11060.12 | AF38: 0 | AG38: 584863.38 | AH38: 110788.6 | AI38: 0 | AJ38: 49555.78 | AK38: 618478.21 | AL38: 212123.25 | AM38: 34686.23 | AN38: 15155.31 | AO38: 17629.05 | AP38: 118400.07 | AQ38: 26252.59 | AR38: 0 | AS38: 320985.23 | AT38: 0 | AU38: 62921.35 | AV38: 9192.21 | AW38: 0 | AX38: 13256.17
A39: Кыштымский городской округ
A40: 24. | B40: г. Кыштым, ул. Боровая, д. 11 | C40: =SUM(D40,L40,N40,P40,R40:U40,AK40) -> 2967873.41 | D40: =SUM(E40:J40) -> 360818 | E40: 360818 | O40: 827.05 | P40: 2544873.6 | U40: =SUM(W40:AJ40) -> 0 | V40: =SUM(W40:AB40) -> 0 | AK40: =SUM(AM40:AX40) -> 62181.81 | AL40: =SUM(AM40:AR40) -> 7721.51 | AM40: 7721.51 | AU40: 54460.3
A41: 25. | B41: г. Кыштым, ул. Боровая, д. 5 | C41: 47680.92 | D41: 0 | U41: 47680.92 | V41: 0 | AC41: 47680.92 | AK41: 0 | AL41: 0
A42: 26. | B42: г. Кыштым, ул. Боровая, д. 9 | C42: 353033.63 | D42: 345637 | E42: 345637 | U42: 0 | V42: 0 | AK42: 7396.63 | AL42: 7396.63 | AM42: 7396.63
A43: 27. | B43: г. Кыштым, ул. Ленина, д. 30 | C43: 5590863.52 | D43: 1362894 | E43: 252946.8 | F43: 104510.4 | G43: 94036.8 | H43: 702804 | I43: 208596 | K43: 389 | L43: 2127979.2 | O43: 507 | P43: 1313310 | Q43: 49 | R43: 228232.8 | S43: 310312.8 | T43: 130997 | U43: 0 | V43: 0 | AK43: 117137.72 | AL43: 29165.93 | AM43: 5413.06 | AN43: 2236.52 | AO43: 2012.39 | AP43: 15040.01 | AQ43: 4463.95 | AS43: 45538.75 | AU43: 28104.83 | AV43: 4884.18 | AW43: 6640.69 | AX43: 2803.34
A44: 28. | B44: г. Кыштым, ул. Ленина, д. 31А | C44: 10621221.15 | D44: 2119165 | E44: 361945 | F44: 123465.6 | G44: 136831.2 | H44: 1088976 | I44: 407947.2 | K44: 568.44 | L44: 2739254.4 | O44: 795.2 | P44: 3001184.4 | Q44: 82 | R44: 404066.4 | S44: 1436215 | T44: 698804 | U44: 0 | V44: 0 | AK44: 222531.95 | AL44: 45350.13 | AM44: 7745.62 | AN44: 2642.16 | AO44: 2928.19 | AP44: 23304.09 | AQ44: 8730.07 | AS44: 58620.04 | AU44: 64225.35 | AV44: 8647.02 | AW44: 30735 | AX44: 14954.41
A45: 29. | B45: г. Кыштым, ул. Огнеупорная, д. 14 | C45: 4616363.15 | D45: 1109632.8 | E45: 552714 | I45: 556918.8 | M45: 324 | N45: 699262.8 | O45: 735 | P45: 2281606.8 | Q45: 98 | R45: 429140.4 | U45: 0 | V45: 0 | AK45: 96720.35 | AL45: 23746.14 | AM45: 11828.08 | AQ45: 11918.06 | AT45: 14964.22 | AU45: 48826.39 | AV45: 9183.6
A46: 30. | B46: г. Кыштым, ул. Соц. Штурма, д. 3Б | C46: 1552985.58 | D46: 200769.6 | F46: 100384.8 | G46: 100384.8 | K46: 258.7 | L46: 1319678.4 | U46: 0 | V46: 0 | AK46: 32537.58 | AL46: 4296.46 | AN46: 2148.23 | AO46: 2148.23 | AS46: 28241.12
A47: 31. | B47: г. Кыштым, ул. ТНПГ Акуля, д. 1 | C47: 55303.38 | D47: 0 | U47: 55303.38 | V47: 0 | AF47: 55303.38 | AK47: 0 | AL47: 0
A48: 32. | B48: г. Кыштым, ул. ТНПГ Акуля, д. 2 | C48: 54600.6 | D48: 0 | U48: 54600.6 | V48: 0 | AF48: 54600.6 | AK48: 0 | AL48: 0
A49: Итого по Кыштымскому городскому округу | C49: =SUM(C40:C48) -> 25859925.34 | D49: =SUM(D40:D48) -> 5498916.4 | E49: 1874060.8 | F49: 328360.8 | G49: 331252.8 | H49: 1791780 | I49: 1173462 | J49: 0 | K49: 1216.14 | L49: 6186912 | M49: 324 | N49: 699262.8 | O49: 2864.25 | P49: 9140974.8 | Q49: 229 | R49: 1061439.6 | S49: 1746527.8 | T49: 829801 | U49: 157584.9 | V49: 0 | W49: 0 | X49: 0 | Y49: 0 | Z49: 0 | AA49: 0 | AB49: 0 | AC49: 47680.92 | AD49: 0 | AE49: 0 | AF49: 109903.98 | AG49: 0 | AH49: 0 | AI49: 0 | AJ49: 0 | AK49: 538506.04 | AL49: 117676.8 | AM49: 40104.9 | AN49: 7026.91 | AO49: 7088.81 | AP49: 38344.1 | AQ49: 25112.08 | AR49: 0 | AS49: 132399.91 | AT49: 14964.22 | AU49: 195616.87 | AV49: 22714.8 | AW49: 37375.69 | AX49: 17757.75
A50: Локомотивный городской округ
A51: 33. | B51: пгт. Локомотивный, ул. Школьная, д. 54 | C51: =SUM(D51,L51,N51,P51,R51:U51,AK51) -> 8301136.71 | D51: =SUM(E51:J51) -> 0 | K51: 1201.2 | L51: 7546697.3 | U51: =SUM(W51:AJ51) -> 559014.61 | V51: =SUM(W51:AB51) -> 0 | AD51: 559014.61 | AK51: =SUM(AM51:AX51) -> 195424.8 | AL51: =SUM(AM51:AR51) -> 0 | AS51: 195424.8
A52: Итого по Локомотивному городскому округу | C52: =SUM(C51) -> 8301136.71 | D52: =SUM(D51) -> 0 | E52: 0 | F52: 0 | G52: 0 | H52: 0 | I52: 0 | J52: 0 | K52: 1201.2 | L52: 7546697.3 | M52: 0 | N52: 0 | O52: 0 | P52: 0 | Q52: 0 | R52: 0 | S52: 0 | T52: 0 | U52: 559014.61 | V52: 0 | W52: 0 | X52: 0 | Y52: 0 | Z52: 0 | AA52: 0 | AB52: 0 | AC52: 0 | AD52: 559014.61 | AE52: 0 | AF52: 0 | AG52: 0 | AH52: 0 | AI52: 0 | AJ52: 0 | AK52: 195424.8 | AL52: 0 | AM52: 0 | AN52: 0 | AO52: 0 | AP52: 0 | AQ52: 0 | AR52: 0 | AS52: 195424.8 | AT52: 0 | AU52: 0 | AV52: 0 | AW52: 0 | AX52: 0
A53: Магнитогорский городской округ
A54: 34. | B54: г. Магнитогорск, пр-кт Карла Маркса, д. 29 | C54: =SUM(D54,L54,N54,P54,R54:U54,AK54) -> 141593.92 | D54: =SUM(E54:J54) -> 0 | U54: =SUM(W54:AJ54) -> 141593.92 | V54: =SUM(W54:AB54) -> 141593.92 | X54: 141593.92 | AK54: =SUM(AM54:AX54) -> 0 | AL54: =SUM(AM54:AR54) -> 0
A55: 35. | B55: г. Магнитогорск, пр-кт Ленина, д. 106, корп. 1 | C55: 3492153.53 | D55: 2774816.4 | H55: 2774816.4 | T55: 644170.8 | U55: 0 | V55: 0 | AK55: 73166.33 | AL55: 59381.07 | AP55: 59381.07 | AX55: 13785.26
A56: 36. | B56: г. Магнитогорск, пр-кт Ленина, д. 6 | C56: 10262637.03 | D56: 0 | K56: 577 | L56: 4689279 | O56: 724 | P56: 4628532 | U56: 745424.88 | V56: 0 | AD56: 375142.32 | AG56: 370282.56 | AK56: 199401.15 | AL56: 0 | AS56: 100350.57 | AU56: 99050.58
A57: 37. | B57: г. Магнитогорск, ул. 50-летия Магнитки, д. 32 | C57: 11290678.58 | D57: 0 | K57: 1410 | L57: 11054120.4 | U57: 0 | V57: 0 | AK57: 236558.18 | AL57: 0 | AS57: 236558.18
A58: 38. | B58: г. Магнитогорск, ул. Жукова, д. 1 | C58: 16723070.06 | D58: 0 | K58: 2075.5 | L58: 16372694.4 | U58: 0 | V58: 0 | AK58: 350375.66 | AL58: 0 | AS58: 350375.66
A59: 39. | B59: г. Магнитогорск, ул. Куйбышева, д. 21 | C59: 4555056.029 | D59: 4492093 | F59: 3080298 | G59: 1411795 | U59: 0 | V59: 0 | AK59: 62963.02864 | AL59: 62963.02864 | AN59: 43163.73152 | AO59: 19799.29712
A60: 40. | B60: г. Магнитогорск, ул. Мичурина, д. 3 | C60: 11015420.27 | D60: 0 | K60: 826 | L60: 4732821.6 | O60: 651 | P60: 5278820.4 | Q60: 107 | R60: 772987.2 | U60: 0 | V60: 0 | AK60: 230791.07 | AL60: 0 | AS60: 101282.38 | AU60: 112966.76 | AV60: 16541.93
A61: 41. | B61: г. Магнитогорск, ул. Строителей, д. 6 | C61: 7287693.96 | D61: 0 | O61: 1035 | P61: 6616755 | U61: 529340.4 | V61: 0 | AG61: 529340.4 | AK61: 141598.56 | AL61: 0 | AU61: 141598.56
A62: 42. | B62: г. Магнитогорск, ул. Трамвайная, д. 17 | C62: 1780978.41 | D62: 1743664 | F62: 1743664 | U62: 0 | V62: 0 | AK62: 37314.41 | AL62: 37314.41 | AN62: 37314.41
A63: 43. | B63: г. Магнитогорск, ул. Фадеева, д. 16 | C63: 4765366.62 | D63: 0 | K63: 547.3 | L63: 4665524.4 | U63: 0 | V63: 0 | AK63: 99842.22 | AL63: 0 | AS63: 99842.22
A64: Итого по Магнитогорскому городскому округу | C64: =SUM(C54:C63) -> 71314648.41 | D64: =SUM(D54:D63) -> 9010573.4 | E64: 0 | F64: 4823962 | G64: 1411795 | H64: 2774816.4 | I64: 0 | J64: 0 | K64: 5435.8 | L64: 41514439.8 | M64: 0 | N64: 0 | O64: 2410 | P64: 16524107.4 | Q64: 107 | R64: 772987.2 | S64: 0 | T64: 644170.8 | U64: 1416359.2 | V64: 141593.92 | W64: 0 | X64: 141593.92 | Y64: 0 | Z64: 0 | AA64: 0 | AB64: 0 | AC64: 0 | AD64: 375142.32 | AE64: 0 | AF64: 0 | AG64: 899622.96 | AH64: 0 | AI64: 0 | AJ64: 0 | AK64: 1432010.609 | AL64: 159658.5086 | AM64: 0 | AN64: 80478.14152 | AO64: 19799.29712 | AP64: 59381.07 | AQ64: 0 | AR64: 0 | AS64: 888409.01 | AT64: 0 | AU64: 353615.9 | AV64: 16541.93 | AW64: 0 | AX64: 13785.26
A65: Миасский городской округ
A66: 44. | B66: г. Миасс, ул. Готвальда, д. 40 | C66: =SUM(D66,L66,N66,P66,R66:U66,AK66) -> 5505761.81 | D66: =SUM(E66:J66) -> 0 | K66: 944 | L66: 5381781.45 | U66: =SUM(W66:AJ66) -> 0 | V66: =SUM(W66:AB66) -> 0 | AK66: =SUM(AM66:AX66) -> 123980.36 | AL66: =SUM(AM66:AR66) -> 0 | AS66: 123980.36
A67: 45. | B67: г. Миасс, ул. Романенко, д. 85 | C67: 34976.82 | D67: 0 | U67: 34976.82 | V67: 0 | AF67: 34976.82 | AK67: 0 | AL67: 0
A68: Итого по Миасскому городскому округу | C68: =SUM(C66:C67) -> 5540738.63 | D68: =SUM(D66:D67) -> 0 | E68: 0 | F68: 0 | G68: 0 | H68: 0 | I68: 0 | J68: 0 | K68: 944 | L68: 5381781.45 | M68: 0 | N68: 0 | O68: 0 | P68: 0 | Q68: 0 | R68: 0 | S68: 0 | T68: 0 | U68: 34976.82 | V68: 0 | W68: 0 | X68: 0 | Y68: 0 | Z68: 0 | AA68: 0 | AB68: 0 | AC68: 0 | AD68: 0 | AE68: 0 | AF68: 34976.82 | AG68: 0 | AH68: 0 | AI68: 0 | AJ68: 0 | AK68: 123980.36 | AL68: 0 | AM68: 0 | AN68: 0 | AO68: 0 | AP68: 0 | AQ68: 0 | AR68: 0 | AS68: 123980.36 | AT68: 0 | AU68: 0 | AV68: 0 | AW68: 0 | AX68: 0
A69: Озерский городской округ
A70: 46. | B70: г. Озерск, пр-кт Ленина, д. 67 | C70: =SUM(D70,L70,N70,P70,R70:U70,AK70) -> 4721600.12 | D70: =SUM(E70:J70) -> 3991113.6 | H70: 3991113.6 | T70: 634953.6 | U70: =SUM(W70:AJ70) -> 0 | V70: =SUM(W70:AB70) -> 0 | AK70: =SUM(AM70:AX70) -> 95532.92 | AL70: =SUM(AM70:AR70) -> 82420.49 | AP70: 82420.49 | AX70: 13112.43
A71: 47. | B71: г. Озерск, пр-кт Победы, д. 12 | C71: 6377995.45 | D71: 4936114.8 | F71: 478678.8 | G71: 260738.4 | H71: 3620656.8 | I71: 576040.8 | M71: 150 | N71: 477703.2 | S71: 304220.4 | T71: 530910 | U71: 0 | V71: 0 | AK71: 129047.05 | AL71: 101935.72 | AN71: 9885.2 | AO71: 5384.51 | AP71: 74770.19 | AQ71: 11895.82 | AT71: 9865.05 | AW71: 6282.46 | AX71: 10963.82
A72: 48. | B72: г. Озерск, пр-кт Победы, д. 13 | C72: 4883254.05 | D72: 3646105.2 | F72: 382182 | G72: 192782.4 | H72: 2670016.8 | I72: 401124 | M72: 150 | N72: 354631.2 | S72: 303832.8 | T72: 479881.2 | U72: 0 | V72: 0 | AK72: 98803.65 | AL72: 75295.68 | AN72: 7892.44 | AO72: 3981.11 | AP72: 55138.52 | AQ72: 8283.61 | AT72: 7323.49 | AW72: 6274.45 | AX72: 9910.03
A73: 49. | B73: г. Озерск, пр-кт Победы, д. 19 | C73: 5085802.28 | D73: 3846076.8 | F73: 377349.6 | G73: 192368.4 | H73: 2879212.8 | I73: 397146 | M73: 50 | N73: 354631.2 | S73: 302311.2 | T73: 479881.2 | U73: 0 | V73: 0 | AK73: 102901.88 | AL73: 79425.33 | AN73: 7792.65 | AO73: 3972.6 | AP73: 59458.62 | AQ73: 8201.46 | AT73: 7323.49 | AW73: 6243.03 | AX73: 9910.03
A74: 50. | B74: г. Озерск, пр-кт Победы, д. 21 | C74: 4878860.81 | D74: 3646105.2 | F74: 382182 | G74: 192782.4 | H74: 2670016.8 | I74: 401124 | M74: 150 | N74: 351848.4 | S74: 302311.2 | T74: 479881.2 | U74: 0 | V74: 0 | AK74: 98714.81 | AL74: 75295.72 | AN74: 7892.44 | AO74: 3981.15 | AP74: 55138.52 | AQ74: 8283.61 | AT74: 7266.03 | AW74: 6243.03 | AX74: 9910.03
A75: 51. | B75: г. Озерск, пр-кт Победы, д. 30 | C75: 5320600.2 | D75: 4060538.4 | F75: 408584.4 | G75: 220677.6 | H75: 3063014.4 | I75: 368262 | M75: 150 | N75: 370216.8 | S75: 302311.2 | T75: 479881.2 | U75: 0 | V75: 0 | AK75: 107652.6 | AL75: 83854.19 | AN75: 8437.68 | AO75: 4557.21 | AP75: 63254.32 | AQ75: 7604.98 | AT75: 7645.35 | AW75: 6243.03 | AX75: 9910.03
A76: 52. | B76: г. Озерск, ул. Набережная, д. 2 | C76: 8675011.89 | D76: 0 | K76: 1035 | L76: 7876350 | U76: 630108 | V76: 0 | AD76: 630108 | AK76: 168553.89 | AL76: 0 | AS76: 168553.89
A77: 53. | B77: г. Озерск, ул. Строительная, д. 19 | C77: 3196762.84 | D77: 0 | K77: 344 | L77: 2902454 | U77: 232196.32 | V77: 0 | AD77: 232196.32 | AK77: 62112.52 | AL77: 0 | AS77: 62112.52
A78: 54. | B78: г. Озерск, ул. Строительная, д. 21 | C78: 3196762.84 | D78: 0 | K78: 344 | L78: 2902454 | U78: 232196.32 | V78: 0 | AD78: 232196.32 | AK78: 62112.52 | AL78: 0 | AS78: 62112.52
A79: 55. | B79: г. Озерск, ул. Строительная, д. 25 | C79: 3196762.84 | D79: 0 | K79: 344 | L79: 2902454 | U79: 232196.32 | V79: 0 | AD79: 232196.32 | AK79: 62112.52 | AL79: 0 | AS79: 62112.52
A80: 56. | B80: г. Озерск, ул. Строительная, д. 26 | C80: 3196762.84 | D80: 0 | K80: 423 | L80: 2902454 | U80: 232196.32 | V80: 0 | AD80: 232196.32 | AK80: 62112.52 | AL80: 0 | AS80: 62112.52
A81: 57. | B81: г. Озерск, ул. Строительная, д. 27 | C81: 3196762.84 | D81: 0 | K81: 344 | L81: 2902454 | U81: 232196.32 | V81: 0 | AD81: 232196.32 | AK81: 62112.52 | AL81: 0 | AS81: 62112.52
A82: 58. | B82: г. Озерск, ул. Строительная, д. 34 | C82: 5592314.91 | D82: 0 | K82: 344 | L82: 2379382.9 | O82: 427 | P82: 2811768 | Q82: 68 | R82: 304714.14 | U82: 0 | V82: 0 | AK82: 96449.87 | AL82: 0 | AS82: 46336.85 | AU82: 43733.32 | AV82: 6379.7
A83: 59. | B83: г. Озерск, ул. Строительная, д. 36 | C83: 5478861.83 | D83: 0 | K83: 344 | L83: 2291788.67 | O83: 427 | P83: 2793134.4 | Q83: 68 | R83: 301067.1 | U83: 0 | V83: 0 | AK83: 92871.66 | AL83: 0 | AS83: 44431.14 | AU83: 42337.42 | AV83: 6103.1
A84: 60. | B84: г. Озерск, ул. Строительная, д. 38 | C84: 4973692.44 | D84: 0 | K84: 344 | L84: 2268397.02 | O84: 427 | P84: 2612396.4 | U84: 0 | V84: 0 | AK84: 92899.02 | AL84: 0 | AS84: 43678.67 | AU84: 49220.35
A85: 61. | B85: г. Озерск, ул. Строительная, д. 4 | C85: 3196762.84 | D85: 0 | K85: 344 | L85: 2902454 | U85: 232196.32 | V85: 0 | AD85: 232196.32 | AK85: 62112.52 | AL85: 0 | AS85: 62112.52
A86: 62. | B86: г. Озерск, ул. Строительная, д. 40 | C86: 6572889.67 | D86: 0 | K86: 509 | L86: 2865890.16 | O86: 549 | P86: 3278225.05 | Q86: 75 | R86: 297772.8 | U86: 0 | V86: 0 | AK86: 131001.66 | AL86: 0 | AS86: 60901.19 | AU86: 61806.74 | AV86: 8293.73
A87: 63. | B87: г. Озерск, ул. Трудящихся, д. 31 | C87: 18766366.63 | D87: 4894739.9 | F87: 737335.88 | G87: 305574.48 | H87: 3144848.52 | I87: 706981.02 | K87: 1271 | L87: 8362769.86 | O87: 1490 | P87: 4027552.8 | Q87: 176 | R87: 1088118 | U87: 0 | V87: 0 | AK87: 393186.07 | AL87: 104747.43 | AN87: 15778.99 | AO87: 6539.29 | AP87: 67299.76 | AQ87: 15129.39 | AS87: 178963.28 | AU87: 86189.63 | AV87: 23285.73
A88: Итого по Озерскому городскому округу | C88: =SUM(C70:C87) -> 100507827.3 | D88: =SUM(D70:D87) -> 29020793.9 | E88: 0 | F88: 2766312.68 | G88: 1364923.68 | H88: 22038879.72 | I88: 2850677.82 | J88: 0 | K88: 5990 | L88: 43459302.61 | M88: 650 | N88: 1909030.8 | O88: 3320 | P88: 15523076.65 | Q88: 387 | R88: 1991672.04 | S88: 1514986.8 | T88: 3085388.4 | U88: 2023285.92 | V88: 0 | W88: 0 | X88: 0 | Y88: 0 | Z88: 0 | AA88: 0 | AB88: 0 | AC88: 0 | AD88: 2023285.92 | AE88: 0 | AF88: 0 | AG88: 0 | AH88: 0 | AI88: 0 | AJ88: 0 | AK88: 1980290.2 | AL88: 602974.56 | AM88: 0 | AN88: 57679.4 | AO88: 28415.87 | AP88: 457480.42 | AQ88: 59398.87 | AR88: 0 | AS88: 915540.14 | AT88: 39423.41 | AU88: 283287.46 | AV88: 44062.26 | AW88: 31286 | AX88: 63716.37
A89: Троицкий городской округ
A90: 64. | B90: г. Троицк, городок Военный 2-й, д. 20 | C90: =SUM(D90,L90,N90,P90,R90:U90,AK90) -> 181631.87 | D90: =SUM(E90:J90) -> 0 | Q90: 138 | R90: 164910 | U90: =SUM(W90:AJ90) -> 13192.8 | V90: =SUM(W90:AB90) -> 0 | AH90: 13192.8 | AK90: =SUM(AM90:AX90) -> 3529.07 | AL90: =SUM(AM90:AR90) -> 0 | AV90: 3529.07
A91: 65. | B91: г. Троицк, пр-кт Строителей, д. 1 | C91: 12523204.85 | D91: 3255984.53 | E91: 680035.46 | F91: 290323.04 | G91: 142908.85 | H91: 1546655.02 | I91: 596062.16 | K91: 612 | L91: 3565538.02 | M91: 234.5 | N91: 181503 | O91: 1078 | P91: 2575476.25 | Q91: 80 | R91: 547302.44 | S91: 1436215 | T91: 698804 | U91: 0 | V91: 0 | AK91: 262381.61 | AL91: 69678.07 | AM91: 14552.76 | AN91: 6212.91 | AO91: 3058.25 | AP91: 33098.42 | AQ91: 12755.73 | AS91: 76302.51 | AT91: 3884.16 | AU91: 55115.19 | AV91: 11712.27 | AW91: 30735 | AX91: 14954.41
A92: 66. | B92: г. Троицк, пр-кт Строителей, д. 11 | C92: 81468.42 | D92: 0 | U92: 81468.42 | V92: 0 | AF92: 81468.42 | AK92: 0 | AL92: 0
A93: 67. | B93: г. Троицк, пр-кт Строителей, д. 3 | C93: 12492784.3 | D93: 3365282.71 | E93: 672805.19 | F93: 300326.41 | G93: 141839.21 | H93: 1592839.5 | I93: 657472.4 | K93: 610 | L93: 3555972.61 | M93: 323.8 | N93: 250621.2 | O93: 1077 | P93: 2545172.52 | Q93: 297 | R93: 378972 | S93: 1436215 | T93: 698804 | U93: 0 | V93: 0 | AK93: 261744.26 | AL93: 72017.06 | AM93: 14398.03 | AN93: 6426.99 | AO93: 3035.36 | AP93: 34086.77 | AQ93: 14069.91 | AS93: 76097.81 | AT93: 5363.29 | AU93: 54466.69 | AV93: 8110 | AW93: 30735 | AX93: 14954.41
A94: 68. | B94: г. Троицк, пр-кт Строителей, д. 9 | C94: 80062.86 | D94: 0 | U94: 80062.86 | V94: 0 | AF94: 80062.86 | AK94: 0 | AL94: 0
A95: 69. | B95: г. Троицк, ул. им. А.Г. Мотова, д. 55 | C95: 34936.44 | D95: 0 | U95: 34936.44 | V95: 34936.44 | W95: 34936.44 | AK95: 0 | AL95: 0
A96: 70. | B96: г. Троицк, ул. им. А.Е. Карташова, д. 42 | C96: 4365914.15 | D96: 3555824.52 | F96: 362388 | G96: 232346.15 | H96: 2116325.39 | I96: 844764.98 | M96: 420 | N96: 666420 | U96: 53313.6 | V96: 0 | AE96: 53313.6 | AK96: 90356.03 | AL96: 76094.64 | AN96: 7755.1 | AO96: 4972.21 | AP96: 45289.36 | AQ96: 18077.97 | AT96: 14261.39
A97: 71. | B97: г. Троицк, ул. им. А.М. Климова, д. 48 | C97: 2413201.57 | D97: 1912002.93 | E97: 373810.01 | F97: 70509.86 | G97: 109340 | H97: 1030894.09 | I97: 327448.97 | M97: 67 | N97: 51977.04 | Q97: 105 | R97: 390097.15 | U97: 8747.2 | V97: 8747.2 | Y97: 8747.2 | AK97: 50377.25 | AL97: 40916.86 | AM97: 7999.53 | AN97: 1508.91 | AO97: 2339.88 | AP97: 22061.13 | AQ97: 7007.41 | AT97: 1112.31 | AV97: 8348.08
A98: 72. | B98: г. Троицк, ул. им. Братьев Малышевых, д. 47 | C98: 2953190.84 | D98: 2408923.67 | F98: 100065.12 | G98: 103064.04 | H98: 1655803.43 | I98: 549991.08 | T98: 482393 | U98: 0 | V98: 0 | AK98: 61874.17 | AL98: 51550.96 | AN98: 2141.39 | AO98: 2205.57 | AP98: 35434.19 | AQ98: 11769.81 | AX98: 10323.21
A99: 73. | B99: г. Троицк, ул. им. И.В. Мичурина, д. 7 | C99: 27223.2 | D99: 0 | U99: 27223.2 | V99: 27223.2 | W99: 27223.2 | AK99: 0 | AL99: 0
A100: 74. | B100: г. Троицк, ул. им. Н.К. Крупской, д. 1 | C100: 10972932.57 | D100: 2871171.98 | E100: 505867.16 | F100: 64322.5 | G100: 84901.22 | H100: 1949986.87 | I100: 266094.23 | K100: 453 | L100: 3681531 | O100: 624 | P100: 3989232 | Q100: 154 | R100: 196504 | U100: 0 | V100: 0 | AK100: 234493.59 | AL100: 61443.09 | AM100: 10825.56 | AN100: 1376.5 | AO100: 1816.89 | AP100: 41729.72 | AQ100: 5694.42 | AS100: 78784.76 | AU100: 85369.56 | AV100: 8896.18
A101: 75. | B101: г. Троицк, ул. им. С.М. Кирова, д. 19 | C101: 274326.28 | D101: 0 | U101: 274326.28 | V101: 46118.65 | W101: 32667.84 | Y101: 13450.81 | AD101: 83367.47 | AG101: 130571.86 | AH101: 14268.3 | AK101: 0 | AL101: 0
A102: 76. | B102: г. Троицк, ул. им. С.М. Кирова, д. 36 | C102: 79829.25 | D102: 0 | U102: 79829.25 | V102: 0 | AG102: 79829.25 | AK102: 0 | AL102: 0
A103: 77. | B103: г. Троицк, ул. им. С.М. Кирова, д. 5 | C103: 264229.42 | D103: 0 | U103: 264229.42 | V103: 32214.12 | W103: 32214.12 | AD103: 81823.63 | AG103: 134020.93 | AH103: 16170.74 | AK103: 0 | AL103: 0
A104: 78. | B104: г. Троицк, ул. им. С.М. Кирова, д. 59 | C104: 452341.8 | D104: 0 | U104: 452341.8 | V104: 123911.89 | W104: 31760.4 | Y104: 13134.32 | Z104: 57553.19 | AA104: 21463.98 | AD104: 159324.49 | AG104: 152744.44 | AH104: 16360.98 | AK104: 0 | AL104: 0
A105: 79. | B105: г. Троицк, ул. им. Ю.А. Гагарина, д. 26 | C105: 11780717.34 | D105: 0 | K105: 1108 | L105: 7048731.96 | O105: 1880 | P105: 3917863.52 | Q105: 146 | R105: 567296.57 | U105: 0 | V105: 0 | AK105: 246825.29 | AL105: 0 | AS105: 150842.86 | AU105: 83842.28 | AV105: 12140.15
A106: 80. | B106: г. Троицк, ул. им. Ю.А. Гагарина, д. 39 | C106: 4589004.36 | D106: 4056661.33 | F106: 221086.1 | G106: 220976.3 | H106: 2710075.88 | I106: 904523.05 | M106: 498 | N106: 436195.9 | U106: 0 | V106: 0 | AK106: 96147.13 | AL106: 86812.54 | AN106: 4731.24 | AO106: 4728.89 | AP106: 57995.62 | AQ106: 19356.79 | AT106: 9334.59
A107: 81. | B107: г. Троицк, ул. им. С.И. Денисова, д. 32 | C107: 2065685.57 | D107: 0 | O107: 1100 | P107: 2022406.08 | U107: 0 | V107: 0 | AK107: 43279.49 | AL107: 0 | AU107: 43279.49
A108: 82. | B108: г. Троицк, ул. им. Т.Д. Дерибаса, д. 12 | C108: 4637857.2 | D108: 4295694.5 | E108: 828168.5 | G108: 233530 | H108: 3006656 | I108: 227340 | Q108: 192 | R108: 244992 | U108: 0 | V108: 0 | AK108: 97170.7 | AL108: 91927.87 | AM108: 17722.81 | AO108: 4997.54 | AP108: 64342.44 | AQ108: 4865.08 | AV108: 5242.83
A109: 83. | B109: г. Троицк, ул. им. Т.Д. Дерибаса, д. 14 | C109: 1563802.19 | D109: 1496074.2 | E109: 526474.2 | G109: 109340 | H109: 523200 | I109: 337060 | U109: 35712 | V109: 35712 | Y109: 8747.2 | AA109: 26964.8 | AK109: 32015.99 | AL109: 32015.99 | AM109: 11266.55 | AO109: 2339.88 | AP109: 11196.48 | AQ109: 7213.08
A110: 84. | B110: г. Троицк, ул. им. Т.Д. Дерибаса, д. 26 | C110: 8999228.37 | D110: 2445341.6 | E110: 945365.6 | G110: 322696 | H110: 934784 | I110: 242496 | K110: 632 | L110: 5136264 | O110: 562 | P110: 880654 | Q110: 219 | R110: 279444 | U110: 70452.32 | V110: 0 | AG110: 70452.32 | AK110: 187072.45 | AL110: 52330.3 | AM110: 20230.82 | AO110: 6905.69 | AP110: 20004.38 | AQ110: 5189.41 | AS110: 109916.05 | AU110: 18846 | AV110: 5980.1
A111: 85. | B111: г. Троицк, ул. им. Т.Д. Дерибаса, д. 8 | C111: 7063815.15 | D111: 0 | K111: 567 | L111: 4608009 | O111: 618.15 | P111: 1918900 | Q111: 187 | R111: 238612 | U111: 153512 | V111: 0 | AG111: 153512 | AK111: 144782.15 | AL111: 0 | AS111: 98611.39 | AU111: 41064.46 | AV111: 5106.3
A112: 86. | B112: г. Троицк, ул. Инженерная, д. 148 | C112: 256859.49 | D112: 0 | U112: 256859.49 | V112: 45211.21 | W112: 31760.4 | Y112: 13450.81 | AD112: 82441.16 | AG112: 114558.33 | AH112: 14648.79 | AK112: 0 | AL112: 0
A113: 87. | B113: г. Троицк, ул. Инженерная, д. 150 | C113: 356115.36 | D113: 0 | U113: 356115.36 | V113: 34482.72 | W113: 34482.72 | AD113: 129373.96 | AG113: 177134.28 | AH113: 15124.4 | AK113: 0 | AL113: 0
A114: 88. | B114: г. Троицк, ул. Кирзавод, д. 21 | C114: 7193008.18 | D114: 1289684.7 | E114: 488138.7 | G114: 72182 | H114: 592960 | I114: 136404 | K114: 338 | L114: 2746926 | O114: 447.4 | P114: 2860228.2 | Q114: 114 | R114: 145464 | U114: 0 | V114: 0 | AK114: 150705.28 | AL114: 27599.25 | AM114: 10446.17 | AO114: 1544.69 | AP114: 12689.34 | AQ114: 2919.05 | AS114: 58784.22 | AU114: 61208.88 | AV114: 3112.93
A115: 89. | B115: г. Троицк, ул. Пионерская, д. 59 | C115: 386062.64 | D115: 377974 | E115: 377974 | U115: 0 | V115: 0 | AK115: 8088.64 | AL115: 8088.64 | AM115: 8088.64
A116: 90. | B116: г. Троицк, ул. Путевая, д. 10 | C116: 333238.01 | D116: 0 | U116: 333238.01 | V116: 137551.68 | W116: 32214.06 | Y116: 12659.58 | Z116: 75167.95 | AA116: 17510.09 | AD116: 83058.7 | AG116: 97312.99 | AH116: 15314.64 | AK116: 0 | AL116: 0
A117: 91. | B117: г. Троицк, ул. Энергетиков, д. 22 | C117: 9213567.96 | D117: 1888697.69 | E117: 1888697.69 | K117: 1229 | L117: 7131830.96 | U117: 0 | V117: 0 | AK117: 193039.31 | AL117: 40418.13 | AM117: 40418.13 | AS117: 152621.18
A118: 92. | B118: г. Троицк, ул. Энергетиков, д. 3 | C118: 166178.45 | D118: 0 | U118: 166178.45 | V118: 0 | AF118: 166178.45 | AK118: 0 | AL118: 0
A119: Итого по Троицкому городскому округу | C119: =SUM(C90:C118) -> 105802418.1 | D119: =SUM(D90:D118) -> 33219318.36 | E119: 7287336.51 | F119: 1409021.03 | G119: 1773123.77 | H119: 17660180.18 | I119: 5089656.87 | J119: 0 | K119: 5549 | L119: 37474803.55 | M119: 1543.3 | N119: 1586717.14 | O119: 7386.55 | P119: 20709932.57 | Q119: 1632 | R119: 3153594.16 | S119: 2872430 | T119: 1880001 | U119: 2741738.9 | V119: 526109.11 | W119: 257259.18 | X119: 0 | Y119: 70189.92 | Z119: 132721.14 | AA119: 65938.87 | AB119: 0 | AC119: 0 | AD119: 619389.41 | AE119: 53313.6 | AF119: 327709.73 | AG119: 1110136.4 | AH119: 105080.65 | AI119: 0 | AJ119: 0 | AK119: 2163882.41 | AL119: 710893.4 | AM119: 155949 | AN119: 30153.04 | AO119: 37944.85 | AP119: 377927.85 | AQ119: 108918.66 | AR119: 0 | AS119: 801960.78 | AT119: 33955.74 | AU119: 443192.55 | AV119: 72177.91 | AW119: 61470 | AX119: 40232.03
A120: Челябинский городской округ с внутригородским делением
A121: 93. | B121: г. Челябинск, п. Мясокомбинат, д. 14 | C121: =SUM(D121,L121,N121,P121,R121:U121,AK121) -> 2328622.17 | D121: =SUM(E121:J121) -> 0 | K121: 406 | L121: 2297050.4 | U121: =SUM(W121:AJ121) -> 0 | V121: =SUM(W121:AB121) -> 0 | AK121: =SUM(AM121:AX121) -> 31571.77 | AL121: =SUM(AM121:AR121) -> 0 | AS121: 31571.77
A122: 94. | B122: г. Челябинск, пер. Канатовский, д. 4 | C122: 12590561.85 | D122: 0 | K122: 1022.5 | L122: 7193001.05 | O122: 1316.9 | P122: 4083030.7 | Q122: 1022.5 | R122: 1046984.64 | U122: 0 | V122: 0 | AK122: 267545.46 | AL122: 0 | AS122: 163921.56 | AU122: 83925.66 | AV122: 19698.24
A123: 95. | B123: г. Челябинск, пер. Канатовский, д. 4А | C123: 8463320.54 | D123: 0 | K123: 665.98 | L123: 4865284.91 | O123: 943.7 | P123: 2903613.38 | Q123: 665.98 | R123: 518012.12 | U123: 0 | V123: 0 | AK123: 176410.13 | AL123: 0 | AS123: 107111.31 | AU123: 58244.16 | AV123: 11054.66
A124: 96. | B124: г. Челябинск, пр-кт Комсомольский, д. 33 | C124: 88228031.03 | D124: 0 | O124: 9834 | P124: 80159860.87 | U124: 6412788.87 | V124: 0 | AG124: 6412788.87 | AK124: 1655381.29 | AL124: 0 | AU124: 1655381.29
A125: 97. | B125: г. Челябинск, пр-кт Комсомольский, д. 37 | C125: 86638015.9 | D125: 0 | O125: 14400 | P125: 78715247.52 | U125: 6297219.8 | V125: 0 | AG125: 6297219.8 | AK125: 1625548.58 | AL125: 0 | AU125: 1625548.58
A126: 98. | B126: г. Челябинск, пр-кт Комсомольский, д. 41 | C126: 87027817.19 | D126: 0 | O126: 10432 | P126: 79100161.69 | U126: 6328012.93 | V126: 0 | AG126: 6328012.93 | AK126: 1599642.57 | AL126: 0 | AU126: 1599642.57
A127: 99. | B127: г. Челябинск, пр-кт Комсомольский, д. 47 | C127: 62671604.82 | D127: 0 | O127: 13058 | P127: 56962638.32 | U127: 4557011.07 | V127: 0 | AG127: 4557011.07 | AK127: 1151955.43 | AL127: 0 | AU127: 1151955.43
A128: 100. | B128: г. Челябинск, пр-кт Комсомольский, д. 48 | C128: 52309945.58 | D128: 0 | O128: 8992 | P128: 47544857.34 | U128: 3803588.59 | V128: 0 | AG128: 3803588.59 | AK128: 961499.65 | AL128: 0 | AU128: 961499.65
A129: 101. | B129: г. Челябинск, пр-кт Комсомольский, д. 50 | C129: 39658974.53 | D129: 0 | O129: 7290 | P129: 36046305.64 | U129: 2883704.45 | V129: 0 | AG129: 2883704.45 | AK129: 728964.44 | AL129: 0 | AU129: 728964.44
A130: 102. | B130: г. Челябинск, пр-кт Комсомольский, д. 52 | C130: 39557121.73 | D130: 0 | O130: 7290 | P130: 35953730.95 | U130: 2876298.48 | V130: 0 | AG130: 2876298.48 | AK130: 727092.3 | AL130: 0 | AU130: 727092.3
A131: 103. | B131: г. Челябинск, пр-кт Комсомольский, д. 69 | C131: 54311520.5 | D131: 0 | O131: 12757.5 | P131: 49364102.1 | U131: 3949128.17 | V131: 0 | AG131: 3949128.17 | AK131: 998290.23 | AL131: 0 | AU131: 998290.23
A132: 104. | B132: г. Челябинск, пр-кт Комсомольский, д. 74 | C132: 42125853.67 | D132: 0 | O132: 1085 | P132: 38288468.5 | U132: 3063077.48 | V132: 0 | AG132: 3063077.48 | AK132: 774307.69 | AL132: 0 | AU132: 774307.69
A133: 105. | B133: г. Челябинск, пр-кт Ленина, д. 45 | C133: 11007984.4 | D133: 0 | U133: 11007984.4 | V133: 0 | AD133: 1922560 | AG133: 9085424.4 | AK133: 0 | AL133: 0
A134: 106. | B134: г. Челябинск, пр-кт Ленина, д. 53 | C134: 23255388.74 | D134: 0 | O134: 5559 | P134: 22777055.38 | U134: 0 | V134: 0 | AK134: 478333.36 | AL134: 0 | AU134: 478333.36
A135: 107. | B135: г. Челябинск, ул. 3-го Интернационала, д. 128А | C135: 4947488.05 | D135: 0 | O135: 3390.7 | P135: 4861194.19 | U135: 0 | V135: 0 | AK135: 86293.86 | AL135: 0 | AU135: 86293.86
A136: 108. | B136: г. Челябинск, ул. 50-летия ВЛКСМ, д. 41 | C136: 1083961.77 | D136: 0 | T136: 1075332.23 | U136: 0 | V136: 0 | AK136: 8629.54 | AL136: 0 | AX136: 8629.54
A137: 109. | B137: г. Челябинск, ул. 60-летия Октября, д. 3А | C137: 2270319.71 | D137: 2222752.8 | E137: 2222752.8 | U137: 0 | V137: 0 | AK137: 47566.91 | AL137: 47566.91 | AM137: 47566.91
A138: 110. | B138: г. Челябинск, ул. Аральская, д. 243А | C138: 560316.52 | D138: 0 | T138: 555855.78 | U138: 0 | V138: 0 | AK138: 4460.74 | AL138: 0 | AX138: 4460.74
A139: 111. | B139: г. Челябинск, ул. Арзамасская 3-я, д. 23 | C139: 3733790.2 | D139: 3149623.2 | F139: 907938 | G139: 490830 | I139: 1750855.2 | M139: 709 | N139: 505938 | U139: 0 | V139: 0 | AK139: 78229 | AL139: 67401.93 | AN139: 19429.87 | AO139: 10503.76 | AQ139: 37468.3 | AT139: 10827.07
A140: 112. | B140: г. Челябинск, ул. Верхнеуральская, д. 7 | C140: 4474066.05 | D140: 0 | O140: 1573.9 | P140: 4378516.8 | U140: 0 | V140: 0 | AK140: 95549.25 | AL140: 0 | AU140: 95549.25
A141: 113. | B141: г. Челябинск, ул. Гагарина, д. 53 | C141: 304831.69 | D141: 0 | U141: 304831.69 | V141: 0 | AF141: 304831.69 | AK141: 0 | AL141: 0
A142: 114. | B142: г. Челябинск, ул. Дегтярева, д. 41А | C142: 2621456.71 | D142: 2600587 | E142: 1301965 | G142: 607756 | I142: 690866 | U142: 0 | V142: 0 | AK142: 20869.71 | AL142: 20869.71 | AM142: 10448.27 | AO142: 4877.24 | AQ142: 5544.2
A143: 115. | B143: г. Челябинск, ул. Дорожная (Исаково), д. 5 | C143: 3624192.75 | D143: 0 | K143: 493 | L143: 3289157.5 | U143: 263132.6 | V143: 0 | AD143: 263132.6 | AK143: 71902.65 | AL143: 0 | AS143: 71902.65
A144: 116. | B144: г. Челябинск, ул. Калинина, д. 30 | C144: 9004784.27 | D144: 0 | K144: 1006 | L144: 8175762 | U144: 654060.96 | V144: 0 | AD144: 654060.96 | AK144: 174961.31 | AL144: 0 | AS144: 174961.31
A145: 117. | B145: г. Челябинск, ул. Каслинская, д. 24 | C145: 8494572.83 | D145: 0 | K145: 949 | L145: 7712523 | U145: 617001.84 | V145: 0 | AD145: 617001.84 | AK145: 165047.99 | AL145: 0 | AS145: 165047.99
A146: 118. | B146: г. Челябинск, ул. Котина, д. 3 | C146: 11470994.49 | D146: 10386402 | F146: 3869672.4 | G146: 1592896.8 | I146: 4923832.8 | M146: 1223.6 | N146: 844256.4 | U146: 0 | V146: 0 | AK146: 240336.09 | AL146: 222269 | AN146: 82810.99 | AO146: 34087.99 | AQ146: 105370.02 | AT146: 18067.09
A147: 119. | B147: г. Челябинск, ул. Краснооктябрьская, д. 20 | C147: 823543.36 | D147: 0 | U147: 823543.36 | V147: 767639.04 | Z147: 767639.04 | AJ147: 55904.32 | AK147: 0 | AL147: 0
A148: 120. | B148: г. Челябинск, ул. Молодогвардейцев, д. 35А | C148: 655924.06 | D148: 0 | U148: 655924.06 | V148: 655924.06 | W148: 655924.06 | AK148: 0 | AL148: 0
A149: 121. | B149: г. Челябинск, ул. Нахимова, д. 9 | C149: 16057862.76 | D149: 12620490.65 | F149: 1851069.52 | G149: 606678.47 | H149: 10162742.66 | M149: 750 | N149: 481167.2 | S149: 1148214.9 | T149: 1471551.53 | U149: 0 | V149: 0 | AK149: 336438.48 | AL149: 270078.5 | AN149: 39612.89 | AO149: 12982.92 | AP149: 217482.69 | AT149: 10296.98 | AW149: 24571.8 | AX149: 31491.2
A150: 122. | B150: г. Челябинск, ул. Образцова, д. 18 | C150: 11970125.34 | D150: 0 | O150: 1700 | P150: 10868100 | U150: 869448 | V150: 0 | AG150: 869448 | AK150: 232577.34 | AL150: 0 | AU150: 232577.34
A151: 123. | B151: г. Челябинск, ул. Постышева, д. 6 | C151: 3628905.43 | D151: 0 | O151: 1370 | P151: 3079221.46 | Q151: 142.2 | R151: 473652.47 | U151: 0 | V151: 0 | AK151: 76031.5 | AL151: 0 | AU151: 65895.34 | AV151: 10136.16
A152: 124. | B152: г. Челябинск, ул. Российская, д. 200 | C152: 5836467.05 | D152: 4684371.5 | E152: 1423537.98 | F152: 1160457.04 | G152: 366201.16 | I152: 1734175.32 | M152: 367.6 | N152: 257040.37 | S152: 772771.67 | U152: 0 | V152: 0 | AK152: 122283.51 | AL152: 100245.54 | AM152: 30463.71 | AN152: 24833.78 | AO152: 7836.7 | AQ152: 37111.35 | AT152: 5500.66 | AW152: 16537.31
A153: 125. | B153: г. Челябинск, ул. Савина, д. 17 | C153: 18507025.56 | D153: 0 | K153: 912.99 | L153: 7419869.73 | O153: 1382.4 | P153: 8837683.2 | Q153: 111 | R153: 141636 | U153: 1756893.99 | V153: 444958.87 | W153: 97476.83 | X153: 27310.4 | Y153: 47283.46 | Z153: 207717.38 | AA153: 65170.8 | AD153: 593589.58 | AG153: 707014.66 | AH153: 11330.88 | AK153: 350942.64 | AL153: 0 | AS153: 158785.21 | AU153: 189126.42 | AV153: 3031.01
A154: 126. | B154: г. Челябинск, ул. Свободы, д. 163 | C154: 217971.68 | D154: 0 | U154: 217971.68 | V154: 103074.48 | X154: 34032.96 | Y154: 27514.08 | AA154: 41527.44 | AI154: 114897.2 | AK154: 0 | AL154: 0
A155: 127. | B155: г. Челябинск, ул. Советская, д. 36 | C155: 3028884.07 | D155: 0 | Q155: 2324 | R155: 2965424 | U155: 0 | V155: 0 | AK155: 63460.07 | AL155: 0 | AV155: 63460.07
A156: 128. | B156: г. Челябинск, ул. Сталеваров, д. 13 | C156: 1071525.43 | D156: 0 | T156: 1062994.88 | U156: 0 | V156: 0 | AK156: 8530.55 | AL156: 0 | AX156: 8530.55
A157: 129. | B157: г. Челябинск, ул. Станционная (Новосинеглазово), д. 18 | C157: 823271.11 | D157: 806022.23 | I157: 806022.23 | U157: 0 | V157: 0 | AK157: 17248.88 | AL157: 17248.88 | AQ157: 17248.88
A158: 130. | B158: г. Челябинск, ул. Техникумовская, д. 36 | C158: 543144.77 | D158: 531765 | F158: 531765 | U158: 0 | V158: 0 | AK158: 11379.77 | AL158: 11379.77 | AN158: 11379.77
A159: 131. | B159: г. Челябинск, ул. Тимирязева, д. 29 | C159: 85404010.66 | D159: 0 | O159: 5767.87 | P159: 83614657 | U159: 0 | V159: 0 | AK159: 1789353.66 | AL159: 0 | AU159: 1789353.66
A160: 132. | B160: г. Челябинск, ул. Тимирязева, д. 4 | C160: 11442031.58 | D160: 0 | O160: 1625 | P160: 10388625 | U160: 831090 | V160: 0 | AG160: 831090 | AK160: 222316.58 | AL160: 0 | AU160: 222316.58
A161: 133. | B161: г. Челябинск, ул. Ульяны Громовой, д. 10 | C161: 9623248.07 | D161: 7053075.4 | F161: 976872 | G161: 647515 | H161: 4426272 | I161: 1002416.4 | S161: 1651173.22 | T161: 717376.67 | U161: 0 | V161: 0 | AK161: 201622.78 | AL161: 150935.81 | AN161: 20905.06 | AO161: 13856.82 | AP161: 94722.22 | AQ161: 21451.71 | AW161: 35335.11 | AX161: 15351.86
A162: 134. | B162: г. Челябинск, ул. Харлова, д. 3 | C162: 19866492.69 | D162: 0 | O162: 5305 | P162: 19532103.09 | U162: 0 | V162: 0 | AK162: 334389.6 | AL162: 0 | AU162: 334389.6
A163: 135. | B163: г. Челябинск, ул. Челябинского Рабочего, д. 2 | C163: 7529971.48 | D163: 0 | K163: 1170 | L163: 7403228.22 | U163: 0 | V163: 0 | AK163: 126743.26 | AL163: 0 | AS163: 126743.26
A164: 136. | B164: г. Челябинск, ул. Чичерина, д. 38Б | C164: 5399931.85 | D164: 0 | O164: 3649.54 | P164: 3610173.13 | U164: 1747691.72 | V164: 0 | AG164: 1747691.72 | AK164: 42067 | AL164: 0 | AU164: 42067
A165: 137. | B165: г. Челябинск, ул. Энгельса, д. 43Б | C165: 12187371.02 | D165: 9943894.16 | F165: 966085.12 | G165: 762448.01 | H165: 6870419.94 | I165: 1344941.09 | S165: 900706.91 | T165: 1087424.59 | U165: 0 | V165: 0 | AK165: 255345.36 | AL165: 212799.34 | AN165: 20674.22 | AO165: 16316.39 | AP165: 147026.99 | AQ165: 28781.74 | AW165: 19275.13 | AX165: 23270.89
A166: Итого по Челябинскому городскому округу с внутригородским делением | C166: =SUM(C121:C165) -> 877383245.7 | D166: =SUM(D121:D165) -> 53998983.94 | E166: 4948255.78 | F166: 10263859.08 | G166: 5074325.44 | H166: 21459434.6 | I166: 12253109.04 | J166: 0 | K166: 6625.47 | L166: 48355876.81 | M166: 3050.2 | N166: 2088401.97 | O166: 118722.51 | P166: 681069346.3 | Q166: 4265.68 | R166: 5145709.23 | S166: 4472866.7 | T166: 5970535.68 | U166: 59920404.14 | V166: 1971596.45 | W166: 753400.89 | X166: 61343.36 | Y166: 74797.54 | Z166: 975356.42 | AA166: 106698.24 | AB166: 0 | AC166: 0 | AD166: 4050344.98 | AE166: 0 | AF166: 304831.69 | AG166: 53411498.62 | AH166: 11330.88 | AI166: 114897.2 | AJ166: 55904.32 | AK166: 16361120.93 | AL166: 1120795.39 | AM166: 88478.89 | AN166: 219646.58 | AO166: 100461.82 | AP166: 459231.9 | AQ166: 252976.2 | AR166: 0 | AS166: 1000045.06 | AT166: 44691.8 | AU166: 13900754.41 | AV166: 107380.14 | AW166: 95719.35 | AX166: 91734.78
A167: Южноуральский городской округ
A168: 138. | B168: г. Южноуральск, ул. Космонавтов, д. 2 | C168: =SUM(D168,L168,N168,P168,R168:U168,AK168) -> 3802801.41 | D168: =SUM(E168:J168) -> 2512914 | F168: 1041637.2 | G168: 1471276.8 | M168: 1063 | N168: 724330 | S168: 531894 | U168: =SUM(W168:AJ168) -> 0 | V168: =SUM(W168:AB168) -> 0 | AK168: =SUM(AM168:AX168) -> 33663.41 | AL168: =SUM(AM168:AR168) -> 23582.19 | AN168: 10848.13 | AO168: 12734.06 | AT168: 5812.76 | AW168: 4268.46
A169: 139. | B169: г. Южноуральск, ул. Куйбышева, д. 12 | C169: 181541.65 | D169: 0 | U169: 181541.65 | V169: 133563.67 | X169: 32002.9 | Y169: 16457.46 | Z169: 70982.27 | AA169: 14121.04 | AI169: 32274.51 | AJ169: 15703.47 | AK169: 0 | AL169: 0
A170: 140. | B170: г. Южноуральск, ул. Куйбышева, д. 13 | C170: 181541.65 | D170: 0 | U170: 181541.65 | V170: 133563.67 | X170: 32002.9 | Y170: 16457.46 | Z170: 70982.27 | AA170: 14121.04 | AI170: 32274.51 | AJ170: 15703.47 | AK170: 0 | AL170: 0
A171: 141. | B171: г. Южноуральск, ул. Куйбышева, д. 14 | C171: 181541.65 | D171: 0 | U171: 181541.65 | V171: 133563.67 | X171: 32002.9 | Y171: 16457.46 | Z171: 70982.27 | AA171: 14121.04 | AI171: 32274.51 | AJ171: 15703.47 | AK171: 0 | AL171: 0
A172: 142. | B172: г. Южноуральск, ул. Ленина, д. 10 | C172: 230172.66 | D172: 0 | U172: 230172.66 | V172: 182194.68 | X172: 45410.84 | Y172: 22470.76 | Z172: 93131.52 | AA172: 21181.56 | AI172: 32274.51 | AJ172: 15703.47 | AK172: 0 | AL172: 0
A173: 143. | B173: г. Южноуральск, ул. Ленина, д. 10А | C173: 122594.48 | D173: 0 | U173: 122594.48 | V173: 90319.97 | X173: 20552.32 | Y173: 10285.91 | Z173: 49879.43 | AA173: 9602.31 | AI173: 32274.51 | AK173: 0 | AL173: 0
A174: 144. | B174: г. Южноуральск, ул. Ленина, д. 12 | C174: 230172.66 | D174: 0 | U174: 230172.66 | V174: 182194.68 | X174: 45410.84 | Y174: 22470.76 | Z174: 93131.52 | AA174: 21181.56 | AI174: 32274.51 | AJ174: 15703.47 | AK174: 0 | AL174: 0
A175: 145. | B175: г. Южноуральск, ул. Ленина, д. 14 | C175: 138297.95 | D175: 0 | U175: 138297.95 | V175: 90319.97 | X175: 20552.32 | Y175: 10285.91 | Z175: 49879.43 | AA175: 9602.31 | AI175: 32274.51 | AJ175: 15703.47 | AK175: 0 | AL175: 0
A176: 146. | B176: г. Южноуральск, ул. Ленина, д. 15 | C176: 353284.36 | D176: 0 | Q176: 162 | R176: 206712 | U176: 142148.72 | V176: 90319.97 | X176: 20552.32 | Y176: 10285.91 | Z176: 49879.43 | AA176: 9602.31 | AH176: 3850.77 | AI176: 32274.51 | AJ176: 15703.47 | AK176: 4423.64 | AL176: 0 | AV176: 4423.64
A177: 147. | B177: г. Южноуральск, ул. Ленина, д. 18 | C177: 138297.95 | D177: 0 | U177: 138297.95 | V177: 90319.97 | X177: 20552.32 | Y177: 10285.91 | Z177: 49879.43 | AA177: 9602.31 | AI177: 32274.51 | AJ177: 15703.47 | AK177: 0 | AL177: 0
A178: 148. | B178: г. Южноуральск, ул. Ленина, д. 2 | C178: 208991.1 | D178: 0 | U178: 208991.1 | V178: 161013.12 | X178: 45410.84 | Y178: 22470.76 | Z178: 93131.52 | AI178: 32274.51 | AJ178: 15703.47 | AK178: 0 | AL178: 0
A179: 149. | B179: г. Южноуральск, ул. Ленина, д. 21 | C179: 182194.68 | D179: 0 | U179: 182194.68 | V179: 182194.68 | X179: 45410.84 | Y179: 22470.76 | Z179: 93131.52 | AA179: 21181.56 | AK179: 0 | AL179: 0
A180: 150. | B180: г. Южноуральск, ул. Ленина, д. 22 | C180: 181462.53 | D180: 0 | U180: 181462.53 | V180: 133484.55 | X180: 32002.9 | Y180: 16378.34 | Z180: 70982.27 | AA180: 14121.04 | AI180: 32274.51 | AJ180: 15703.47 | AK180: 0 | AL180: 0
A181: 151. | B181: г. Южноуральск, ул. Ленина, д. 24 | C181: 276068.47 | D181: 0 | U181: 276068.47 | V181: 228090.49 | X181: 51791.85 | Y181: 39561.2 | Z181: 110048.67 | AA181: 26688.77 | AI181: 32274.51 | AJ181: 15703.47 | AK181: 0 | AL181: 0
A182: 152. | B182: г. Южноуральск, ул. Ленина, д. 25 | C182: 230172.66 | D182: 0 | U182: 230172.66 | V182: 182194.68 | X182: 45410.84 | Y182: 22470.76 | Z182: 93131.52 | AA182: 21181.56 | AI182: 32274.51 | AJ182: 15703.47 | AK182: 0 | AL182: 0
A183: 153. | B183: г. Южноуральск, ул. Ленина, д. 27 | C183: 229998.26 | D183: 0 | U183: 229998.26 | V183: 182020.28 | X183: 45410.84 | Y183: 22470.76 | Z183: 92957.12 | AA183: 21181.56 | AI183: 32274.51 | AJ183: 15703.47 | AK183: 0 | AL183: 0
A184: 154. | B184: г. Южноуральск, ул. Ленина, д. 28 | C184: 230172.66 | D184: 0 | U184: 230172.66 | V184: 182194.68 | X184: 45410.84 | Y184: 22470.76 | Z184: 93131.52 | AA184: 21181.56 | AI184: 32274.51 | AJ184: 15703.47 | AK184: 0 | AL184: 0
A185: 155. | B185: г. Южноуральск, ул. Ленина, д. 30 | C185: 133292.95 | D185: 0 | U185: 133292.95 | V185: 133292.95 | X185: 31415.69 | Y185: 16773.95 | Z185: 70982.27 | AA185: 14121.04 | AK185: 0 | AL185: 0
A186: 156. | B186: г. Южноуральск, ул. Ленина, д. 32 | C186: 246396.78 | D186: 0 | U186: 246396.78 | V186: 87899.41 | Z186: 87899.41 | AG186: 103932.55 | AH186: 6586.84 | AI186: 32274.51 | AJ186: 15703.47 | AK186: 0 | AL186: 0
A187: 157. | B187: г. Южноуральск, ул. Ленина, д. 33 | C187: 1764855.52 | D187: 1181341.9 | E187: 1181341.9 | M187: 181 | N187: 140094 | Q187: 273 | R187: 348348 | U187: 59338.24 | V187: 49509.93 | W187: 49509.93 | AE187: 4660.18 | AH187: 5168.13 | AK187: 35733.38 | AL187: 25280.72 | AM187: 25280.72 | AT187: 2998.01 | AV187: 7454.65
A188: 158. | B188: г. Южноуральск, ул. Ленина, д. 35 | C188: 246200.16 | D188: 0 | U188: 246200.16 | V188: 188630.35 | W188: 51206.84 | X188: 27207.36 | Y188: 14083.79 | Z188: 81446.48 | AA188: 14685.88 | AE188: 4626.37 | AH188: 4965.46 | AI188: 32274.51 | AJ188: 15703.47 | AK188: 0 | AL188: 0
A189: 159. | B189: г. Южноуральск, ул. Ленина, д. 37 | C189: 7035.43 | D189: 0 | U189: 7035.43 | V189: 0 | AE189: 3184.66 | AH189: 3850.77 | AK189: 0 | AL189: 0
A190: 160. | B190: г. Южноуральск, ул. Ленина, д. 39 | C190: 4820.03 | D190: 0 | U190: 4820.03 | V190: 0 | AE190: 4820.03 | AK190: 0 | AL190: 0
A191: 161. | B191: г. Южноуральск, ул. Ленина, д. 4 | C191: 138297.95 | D191: 0 | U191: 138297.95 | V191: 90319.97 | X191: 20552.32 | Y191: 10285.91 | Z191: 49879.43 | AA191: 9602.31 | AI191: 32274.51 | AJ191: 15703.47 | AK191: 0 | AL191: 0
A192: 162. | B192: г. Южноуральск, ул. Ленина, д. 6А | C192: 138297.95 | D192: 0 | U192: 138297.95 | V192: 90319.97 | X192: 20552.32 | Y192: 10285.91 | Z192: 49879.43 | AA192: 9602.31 | AI192: 32274.51 | AJ192: 15703.47 | AK192: 0 | AL192: 0
A193: 163. | B193: г. Южноуральск, ул. Ленина, д. 8 | C193: 136340.59 | D193: 0 | U193: 136340.59 | V193: 88362.61 | X193: 18594.96 | Y193: 10285.91 | Z193: 49879.43 | AA193: 9602.31 | AI193: 32274.51 | AJ193: 15703.47 | AK193: 0 | AL193: 0
A194: 164. | B194: г. Южноуральск, ул. Ленина, д. 9 | C194: 134202.39 | D194: 0 | U194: 134202.39 | V194: 89063.19 | X194: 45410.84 | Y194: 22470.76 | AA194: 21181.59 | AE194: 12864.69 | AI194: 32274.51 | AK194: 0 | AL194: 0
A195: 165. | B195: г. Южноуральск, ул. Мира, д. 12 | C195: 99013.1 | D195: 0 | U195: 99013.1 | V195: 66738.59 | X195: 32002.9 | Y195: 16378.34 | AA195: 18357.35 | AI195: 32274.51 | AK195: 0 | AL195: 0
A196: 166. | B196: г. Южноуральск, ул. Мира, д. 13 | C196: 138297.95 | D196: 0 | U196: 138297.95 | V196: 90319.97 | X196: 20552.32 | Y196: 10285.91 | Z196: 49879.43 | AA196: 9602.31 | AI196: 32274.51 | AJ196: 15703.47 | AK196: 0 | AL196: 0
A197: 167. | B197: г. Южноуральск, ул. Мира, д. 21 | C197: 177045.64 | D197: 0 | U197: 177045.64 | V197: 129067.66 | W197: 38747.69 | X197: 20552.32 | Y197: 10285.91 | Z197: 49879.43 | AA197: 9602.31 | AI197: 32274.51 | AJ197: 15703.47 | AK197: 0 | AL197: 0
A198: 168. | B198: г. Южноуральск, ул. Мира, д. 23 | C198: 363867.35 | D198: 0 | Q198: 276 | R198: 352176 | U198: 4154.78 | V198: 0 | AH198: 4154.78 | AK198: 7536.57 | AL198: 0 | AV198: 7536.57
A199: 169. | B199: г. Южноуральск, ул. Мира, д. 37А | C199: 26866.75 | D199: 0 | U199: 26866.75 | V199: 0 | AE199: 26866.75 | AK199: 0 | AL199: 0
A200: 170. | B200: г. Южноуральск, ул. Мира, д. 39 | C200: 179436.29 | D200: 0 | U200: 179436.29 | V200: 0 | AD200: 179436.29 | AK200: 0 | AL200: 0
... 288 more rows
